[Event "Early-Titled-Tuesday-Blitz-January-16-2024"]
[Site "Chess.com"]
[Date "2024.01.16"]
[Round "10"]
[White "Lennis93"]
[Black "Garbaranza"]
[Result "1-0"]
[WhiteElo "2742"]
[BlackElo "2434"]
[TimeControl "180+1"]
[EndTime "9:57:19 PST"]
[Termination "Lennis93 won by resignation"]

1. d4 {[%clk 0:02:53.6]} 1... d5 {[%clk 0:02:59.3]} 2. c4 {[%clk 0:02:49.4]}
2... e6 {[%clk 0:02:59.2]} 3. Nf3 {[%clk 0:02:49.4]} 3... Nf6 {[%clk 0:02:59.5]}
4. g3 {[%clk 0:02:50.1]} 4... Nc6 {[%clk 0:02:59.6]} 5. Bg2 {[%clk 0:02:51]}
5... dxc4 {[%clk 0:03:00.2]} 6. O-O {[%clk 0:02:51.3]} 6... Rb8 {[%clk
0:02:57.9]} 7. a4 {[%clk 0:02:47.9]} 7... b6 {[%clk 0:02:56.6]} 8. Qc2 {[%clk
0:02:45.1]} 8... Nxd4 {[%clk 0:02:47.1]} 9. Nxd4 {[%clk 0:02:45.2]} 9... Qxd4
{[%clk 0:02:45.8]} 10. Be3 {[%clk 0:02:45.1]} 10... Qe5 {[%clk 0:02:35.2]} 11.
Qxc4 {[%clk 0:02:44.3]} 11... Bd6 {[%clk 0:02:29.1]} 12. Bf4 {[%clk 0:02:41.1]}
12... Qc5 {[%clk 0:02:24.2]} 13. Qb3 {[%clk 0:02:17.3]} 13... Bxf4 {[%clk
0:02:20.2]} 14. gxf4 {[%clk 0:02:18.2]} 14... O-O {[%clk 0:02:19.8]} 15. Nd2
{[%clk 0:02:17.2]} 15... Ba6 {[%clk 0:02:12.7]} 16. Rfc1 {[%clk 0:02:15.4]}
16... Qd6 {[%clk 0:02:02.8]} 17. Qe3 {[%clk 0:02:07.5]} 17... Ng4 {[%clk
0:01:52]} 18. Qg3 {[%clk 0:01:43.1]} 18... Qxd2 {[%clk 0:01:47.9]} 19. Qxg4
{[%clk 0:01:43]} 19... Qxe2 {[%clk 0:01:40]} 20. Bf3 {[%clk 0:01:41.9]} 20...
Qxb2 {[%clk 0:01:39.4]} 21. Rab1 {[%clk 0:01:41.8]} 21... Qa2 {[%clk 0:01:19.1]}
22. f5 {[%clk 0:01:37.4]} 22... exf5 {[%clk 0:01:12.4]} 23. Qxf5 {[%clk
0:01:37.5]} 23... c5 {[%clk 0:01:05.8]} 24. Bd5 {[%clk 0:01:36.9]} 24... Qe2
{[%clk 0:00:59.5]} 25. Re1 {[%clk 0:01:36.1]} 25... Qd3 {[%clk 0:00:55.5]} 26.
Be4 {[%clk 0:01:35.6]} 26... g6 {[%clk 0:00:51.9]} 27. Bxd3 {[%clk 0:01:34.7]}
27... gxf5 {[%clk 0:00:52]} 28. Bxa6 {[%clk 0:01:33.5]} 28... Rfe8 {[%clk
0:00:50.2]} 29. Bb5 {[%clk 0:01:31.9]} 29... Rxe1+ {[%clk 0:00:48.1]} 30. Rxe1
{[%clk 0:01:32.8]} 30... Kf8 {[%clk 0:00:48.1]} 31. Re5 {[%clk 0:01:32.7]} 31...
Rd8 {[%clk 0:00:45.8]} 32. Rxf5 {[%clk 0:01:32.8]} 32... Rd6 {[%clk 0:00:45.7]}
33. Bc4 {[%clk 0:01:32.4]} 33... f6 {[%clk 0:00:45.6]} 34. Rf4 {[%clk
0:01:29.9]} 34... Kg7 {[%clk 0:00:45.6]} 35. Rg4+ {[%clk 0:01:29.3]} 35... Kh6
{[%clk 0:00:41.8]} 36. Kg2 {[%clk 0:01:29.2]} 36... Rd4 {[%clk 0:00:37.3]} 37.
Rxd4 {[%clk 0:01:29]} 37... cxd4 {[%clk 0:00:37.6]} 38. Kf3 {[%clk 0:01:28.4]}
38... Kg5 {[%clk 0:00:38.2]} 39. Ke4 {[%clk 0:01:28.3]} 39... Kh4 {[%clk
0:00:37.2]} 40. Be6 {[%clk 0:01:28.4]} 40... a6 {[%clk 0:00:32.2]} 41. Bc8
{[%clk 0:01:28.2]} 41... a5 {[%clk 0:00:23]} 42. Kxd4 {[%clk 0:01:27.9]} 42...
Kg5 {[%clk 0:00:18.9]} 43. Ke4 {[%clk 0:01:26.5]} 43... h5 {[%clk 0:00:18.5]}
44. f4+ {[%clk 0:01:25.7]} 44... Kh4 {[%clk 0:00:17.5]} 45. Bf5 {[%clk
0:01:23.4]} 45... b5 {[%clk 0:00:15.2]} 46. axb5 {[%clk 0:01:24.3]} 46... a4
{[%clk 0:00:15.7]} 47. Be6 {[%clk 0:01:21.8]} 47... a3 {[%clk 0:00:15.7]} 48. b6
{[%clk 0:01:20.4]} 48... a2 {[%clk 0:00:15.9]} 49. Bxa2 {[%clk 0:01:20.8]} 49...
Kh3 {[%clk 0:00:16.1]} 50. b7 {[%clk 0:01:21]} 50... Kxh2 {[%clk 0:00:16.4]} 51.
b8=Q {[%clk 0:01:21.6]} 51... h4 {[%clk 0:00:16.9]} 52. Kf3 {[%clk 0:01:21.4]}
52... h3 {[%clk 0:00:17.3]} 1-0

[Event "Early-Titled-Tuesday-Blitz-January-16-2024"]
[Site "Chess.com"]
[Date "2024.01.16"]
[Round "10"]
[White "yaguigor"]
[Black "MusicCityMaster"]
[Result "0-1"]
[WhiteElo "2613"]
[BlackElo "2428"]
[TimeControl "180+1"]
[EndTime "9:57:21 PST"]
[Termination "MusicCityMaster won by resignation"]

1. d4 {[%clk 0:02:54.9]} 1... Nf6 {[%clk 0:02:58.3]} 2. c4 {[%clk 0:02:54.5]}
2... c5 {[%clk 0:02:58.8]} 3. d5 {[%clk 0:02:54.3]} 3... b5 {[%clk 0:02:59.5]}
4. cxb5 {[%clk 0:02:54.2]} 4... a6 {[%clk 0:03:00.3]} 5. bxa6 {[%clk 0:02:54.1]}
5... g6 {[%clk 0:03:01]} 6. Nc3 {[%clk 0:02:53.4]} 6... Bg7 {[%clk 0:03:01.6]}
7. e4 {[%clk 0:02:53.2]} 7... O-O {[%clk 0:03:02.3]} 8. Nf3 {[%clk 0:02:51.3]}
8... Qa5 {[%clk 0:03:02.4]} 9. a7 {[%clk 0:02:32.3]} 9... Rxa7 {[%clk 0:03:02]}
10. Nd2 {[%clk 0:02:25.1]} 10... Ba6 {[%clk 0:02:57.8]} 11. Bxa6 {[%clk
0:02:11.5]} 11... Qxa6 {[%clk 0:02:44.1]} 12. Qe2 {[%clk 0:02:11.5]} 12... Qxe2+
{[%clk 0:02:43.4]} 13. Kxe2 {[%clk 0:02:11.5]} 13... d6 {[%clk 0:02:43.6]} 14.
Nc4 {[%clk 0:02:08.6]} 14... Nfd7 {[%clk 0:02:40]} 15. a4 {[%clk 0:02:02.7]}
15... Ne5 {[%clk 0:02:26.6]} 16. Nxe5 {[%clk 0:01:58.7]} 16... Bxe5 {[%clk
0:02:26.1]} 17. Nb5 {[%clk 0:01:53]} 17... Rb7 {[%clk 0:02:22.5]} 18. Ra2 {[%clk
0:01:48.8]} 18... Na6 {[%clk 0:02:21.3]} 19. Bd2 {[%clk 0:01:48.2]} 19... Ra8
{[%clk 0:02:16.7]} 20. Rc1 {[%clk 0:01:40]} 20... Nb4 {[%clk 0:02:02.4]} 21.
Bxb4 {[%clk 0:00:31.4]} 21... cxb4 {[%clk 0:01:56.8]} 22. Rc4 {[%clk 0:00:19.9]}
22... Rxb5 {[%clk 0:01:50.9]} 23. axb5 {[%clk 0:00:20]} 23... Rxa2 {[%clk
0:01:51.1]} 24. Rc8+ {[%clk 0:00:20.6]} 24... Kg7 {[%clk 0:01:50.3]} 25. b6
{[%clk 0:00:21.1]} 25... Rxb2+ {[%clk 0:01:32.6]} 26. Kd3 {[%clk 0:00:20.1]}
26... Rb3+ {[%clk 0:01:24.9]} 27. Kc2 {[%clk 0:00:19.4]} 27... Rb2+ {[%clk
0:01:24.5]} 28. Kc1 {[%clk 0:00:19.7]} 28... b3 {[%clk 0:00:56.2]} 29. b7 {[%clk
0:00:18.7]} 29... Rxf2 {[%clk 0:00:50.8]} 30. b8=Q {[%clk 0:00:17.4]} 30... b2+
{[%clk 0:00:50.5]} 31. Kd1 {[%clk 0:00:15]} 31... Rf1+ {[%clk 0:00:48.8]} 32.
Kc2 {[%clk 0:00:10.7]} 32... Rc1+ {[%clk 0:00:48.6]} 33. Kd2 {[%clk 0:00:09.2]}
33... b1=Q {[%clk 0:00:47.6]} 34. Rg8+ {[%clk 0:00:08.3]} 34... Kf6 {[%clk
0:00:47.8]} 35. Qxb1 {[%clk 0:00:07.4]} 35... Rxb1 {[%clk 0:00:47.6]} 36. g3
{[%clk 0:00:07.3]} 36... Rb2+ {[%clk 0:00:47.6]} 37. Kd3 {[%clk 0:00:06.7]}
37... Rxh2 {[%clk 0:00:47.7]} 0-1

[Event "Early-Titled-Tuesday-Blitz-January-16-2024"]
[Site "Chess.com"]
[Date "2024.01.16"]
[Round "10"]
[White "GMSrinath"]
[Black "Trojan-Knight"]
[Result "1-0"]
[WhiteElo "2831"]
[BlackElo "2693"]
[TimeControl "180+1"]
[EndTime "9:57:22 PST"]
[Termination "GMSrinath won by resignation"]

1. Nf3 {[%clk 0:03:00.9]} 1... Nf6 {[%clk 0:02:59.2]} 2. c4 {[%clk 0:03:01.1]}
2... g6 {[%clk 0:02:59.4]} 3. g3 {[%clk 0:03:00.6]} 3... Bg7 {[%clk 0:02:57.6]}
4. Bg2 {[%clk 0:03:00.8]} 4... d5 {[%clk 0:02:57.4]} 5. cxd5 {[%clk 0:03:00]}
5... Nxd5 {[%clk 0:02:58.3]} 6. O-O {[%clk 0:02:59.8]} 6... O-O {[%clk 0:02:58]}
7. d4 {[%clk 0:03:00.1]} 7... Nc6 {[%clk 0:02:56.5]} 8. e3 {[%clk 0:03:00.4]}
8... Nb6 {[%clk 0:02:53.7]} 9. Nc3 {[%clk 0:03:00.2]} 9... Re8 {[%clk 0:02:54]}
10. b3 {[%clk 0:02:50.7]} 10... e5 {[%clk 0:02:52.1]} 11. Nxe5 {[%clk
0:02:50.3]} 11... Nxe5 {[%clk 0:02:51.7]} 12. dxe5 {[%clk 0:02:50.8]} 12... Qxd1
{[%clk 0:02:48.5]} 13. Rxd1 {[%clk 0:02:51.7]} 13... Bxe5 {[%clk 0:02:47.3]} 14.
Bb2 {[%clk 0:02:52.1]} 14... c6 {[%clk 0:02:44.1]} 15. Rac1 {[%clk 0:02:51.1]}
15... Be6 {[%clk 0:02:31.6]} 16. Kf1 {[%clk 0:02:48.3]} 16... a5 {[%clk
0:02:28.2]} 17. Ba3 {[%clk 0:02:06.3]} 17... a4 {[%clk 0:02:10.8]} 18. Bc5
{[%clk 0:02:06.1]} 18... Nd7 {[%clk 0:02:07.3]} 19. Nxa4 {[%clk 0:01:58.1]}
19... Nxc5 {[%clk 0:01:28]} 20. Rxc5 {[%clk 0:01:59]} 20... Bc7 {[%clk
0:01:24.7]} 21. Rc2 {[%clk 0:01:57]} 21... Red8 {[%clk 0:01:14.7]} 22. Rcd2
{[%clk 0:01:48.7]} 22... Re8 {[%clk 0:01:05.7]} 23. Nc5 {[%clk 0:01:43.7]} 23...
Bc8 {[%clk 0:01:04.7]} 24. a4 {[%clk 0:01:39.5]} 24... Ba5 {[%clk 0:01:01.3]}
25. Rd3 {[%clk 0:01:35.2]} 25... f5 {[%clk 0:00:37.7]} 26. h3 {[%clk 0:01:03]}
26... Bb4 {[%clk 0:00:36.6]} 27. Nd7 {[%clk 0:01:02]} 27... Kf7 {[%clk
0:00:15.6]} 28. Nb6 {[%clk 0:00:47.4]} 28... Ra6 {[%clk 0:00:15.4]} 29. Nxc8
{[%clk 0:00:43.2]} 29... Rxc8 {[%clk 0:00:16.1]} 30. Rd7+ {[%clk 0:00:44.1]}
30... Kg8 {[%clk 0:00:09.8]} 31. Rxb7 {[%clk 0:00:43.7]} 31... Bf8 {[%clk
0:00:09.5]} 32. Rdd7 {[%clk 0:00:43]} 32... h5 {[%clk 0:00:09]} 33. Bf3 {[%clk
0:00:41.3]} 33... c5 {[%clk 0:00:08.2]} 34. Bd5+ {[%clk 0:00:40.9]} 1-0

[Event "Early-Titled-Tuesday-Blitz-January-16-2024"]
[Site "Chess.com"]
[Date "2024.01.16"]
[Round "10"]
[White "MIss_MIaMI"]
[Black "GiorgianBarbosa"]
[Result "1-0"]
[WhiteElo "2426"]
[BlackElo "2587"]
[TimeControl "180+1"]
[EndTime "9:57:22 PST"]
[Termination "MIss_MIaMI won by checkmate"]

1. e4 {[%clk 0:03:00.9]} 1... c5 {[%clk 0:01:23.2]} 2. Nf3 {[%clk 0:02:59.7]}
2... g6 {[%clk 0:01:24.1]} 3. d4 {[%clk 0:03:00.3]} 3... cxd4 {[%clk 0:01:25]}
4. c3 {[%clk 0:02:59.8]} 4... Bg7 {[%clk 0:01:25.2]} 5. Bd3 {[%clk 0:02:57.1]}
5... d5 {[%clk 0:01:24.6]} 6. exd5 {[%clk 0:02:53.6]} 6... Nf6 {[%clk 0:01:24]}
7. c4 {[%clk 0:02:47.9]} 7... e6 {[%clk 0:01:22]} 8. dxe6 {[%clk 0:02:42.4]}
8... Bxe6 {[%clk 0:01:22.9]} 9. O-O {[%clk 0:02:42.8]} 9... O-O {[%clk
0:01:22.1]} 10. h3 {[%clk 0:02:36.7]} 10... Nc6 {[%clk 0:01:22.4]} 11. a3 {[%clk
0:02:36.4]} 11... a5 {[%clk 0:01:22.5]} 12. Bf4 {[%clk 0:02:27.4]} 12... a4
{[%clk 0:01:21.7]} 13. Nbd2 {[%clk 0:02:20.2]} 13... Re8 {[%clk 0:01:21]} 14.
Re1 {[%clk 0:02:18]} 14... Rc8 {[%clk 0:01:20.4]} 15. Qxa4 {[%clk 0:02:15.6]}
15... Nd7 {[%clk 0:01:16.3]} 16. b4 {[%clk 0:01:43.5]} 16... Nb6 {[%clk
0:01:07.7]} 17. Qb3 {[%clk 0:01:43.5]} 17... Qd7 {[%clk 0:01:04.6]} 18. Ne4
{[%clk 0:01:40.4]} 18... Ne7 {[%clk 0:00:46.9]} 19. Nd6 {[%clk 0:01:35.5]} 19...
Nf5 {[%clk 0:00:46.6]} 20. Nxe8 {[%clk 0:01:14.8]} 20... Rxe8 {[%clk 0:00:45.3]}
21. Ne5 {[%clk 0:01:10.1]} 21... Qc8 {[%clk 0:00:44.2]} 22. Rac1 {[%clk
0:01:02.2]} 22... Ne7 {[%clk 0:00:40.8]} 23. Qc2 {[%clk 0:00:54.5]} 23... h6
{[%clk 0:00:29]} 24. c5 {[%clk 0:00:50.4]} 24... Nbd5 {[%clk 0:00:28.5]} 25. Bh2
{[%clk 0:00:51]} 25... Nc3 {[%clk 0:00:27.5]} 26. Nc4 {[%clk 0:00:50]} 26...
Ned5 {[%clk 0:00:24.2]} 27. Nd6 {[%clk 0:00:49.2]} 27... Qd7 {[%clk 0:00:23]}
28. Nxe8 {[%clk 0:00:49.3]} 28... Qxe8 {[%clk 0:00:23.9]} 29. Be5 {[%clk
0:00:47.4]} 29... Bf8 {[%clk 0:00:21.2]} 30. Bxd4 {[%clk 0:00:46.7]} 30... Nb5
{[%clk 0:00:21.4]} 31. Bb2 {[%clk 0:00:46.1]} 31... Nbc7 {[%clk 0:00:17]} 32.
Rcd1 {[%clk 0:00:38.8]} 32... Qd8 {[%clk 0:00:16.5]} 33. Bxg6 {[%clk 0:00:33.2]}
33... Qg5 {[%clk 0:00:12.3]} 34. Bh7# {[%clk 0:00:31]} 1-0

[Event "Early-Titled-Tuesday-Blitz-January-16-2024"]
[Site "Chess.com"]
[Date "2024.01.16"]
[Round "10"]
[White "FMVolodymyrSakun"]
[Black "finec2"]
[Result "1-0"]
[WhiteElo "2537"]
[BlackElo "2303"]
[TimeControl "180+1"]
[EndTime "9:57:24 PST"]
[Termination "FMVolodymyrSakun won on time"]

1. e4 {[%clk 0:02:49.4]} 1... c5 {[%clk 0:02:59.3]} 2. Nf3 {[%clk 0:02:49.1]}
2... e6 {[%clk 0:02:59.2]} 3. d4 {[%clk 0:02:46.7]} 3... cxd4 {[%clk 0:03:00.1]}
4. Nxd4 {[%clk 0:02:46.3]} 4... Nc6 {[%clk 0:03:00.7]} 5. Be3 {[%clk 0:02:45.3]}
5... Nf6 {[%clk 0:02:59.4]} 6. Bd3 {[%clk 0:02:43.6]} 6... Qc7 {[%clk
0:02:55.3]} 7. Nd2 {[%clk 0:02:40.3]} 7... d5 {[%clk 0:02:48.8]} 8. O-O {[%clk
0:02:37.6]} 8... a6 {[%clk 0:02:39.9]} 9. c3 {[%clk 0:02:32.5]} 9... Be7 {[%clk
0:02:31.4]} 10. f4 {[%clk 0:02:17]} 10... dxe4 {[%clk 0:02:09.3]} 11. Nxe4
{[%clk 0:02:16.4]} 11... O-O {[%clk 0:02:02]} 12. Qf3 {[%clk 0:01:58]} 12... Nd5
{[%clk 0:01:55.2]} 13. Nxc6 {[%clk 0:01:50.6]} 13... Qxc6 {[%clk 0:01:43.6]} 14.
Bd4 {[%clk 0:01:46.1]} 14... f6 {[%clk 0:01:39.9]} 15. Rae1 {[%clk 0:01:42]}
15... Re8 {[%clk 0:01:33.9]} 16. Qh5 {[%clk 0:01:37.4]} 16... g6 {[%clk
0:01:14.8]} 17. Qf3 {[%clk 0:01:25.2]} 17... f5 {[%clk 0:01:03.8]} 18. Nf2
{[%clk 0:01:18]} 18... Bf6 {[%clk 0:01:01.3]} 19. Bxf6 {[%clk 0:01:13.6]} 19...
Nxf6 {[%clk 0:01:02.2]} 20. Bc2 {[%clk 0:01:13.7]} 20... Qxf3 {[%clk 0:00:59.2]}
21. gxf3 {[%clk 0:01:13.1]} 21... Nd5 {[%clk 0:00:52.3]} 22. Nd3 {[%clk
0:01:11.2]} 22... b6 {[%clk 0:00:47.6]} 23. c4 {[%clk 0:01:03.3]} 23... Nc7
{[%clk 0:00:42.5]} 24. c5 {[%clk 0:01:00.9]} 24... b5 {[%clk 0:00:38.8]} 25. b4
{[%clk 0:00:59.7]} 25... Bb7 {[%clk 0:00:35.3]} 26. a4 {[%clk 0:00:54.1]} 26...
Nd5 {[%clk 0:00:31.3]} 27. a5 {[%clk 0:00:51.7]} 27... Rad8 {[%clk 0:00:25.6]}
28. Kf2 {[%clk 0:00:49.3]} 28... Kg7 {[%clk 0:00:22.9]} 29. Rd1 {[%clk
0:00:40.6]} 29... Nc3 {[%clk 0:00:19.2]} 30. Rd2 {[%clk 0:00:40.4]} 30... Kf6
{[%clk 0:00:15.2]} 31. Ra1 {[%clk 0:00:34.5]} 31... Nd5 {[%clk 0:00:13.6]} 32.
Rad1 {[%clk 0:00:32.6]} 32... Re7 {[%clk 0:00:09.8]} 33. Ne5 {[%clk 0:00:32.3]}
33... Rc7 {[%clk 0:00:06.9]} 34. Bb3 {[%clk 0:00:31.9]} 1-0

[Event "Early-Titled-Tuesday-Blitz-January-16-2024"]
[Site "Chess.com"]
[Date "2024.01.16"]
[Round "10"]
[White "tptagain"]
[Black "starworld123"]
[Result "0-1"]
[WhiteElo "2944"]
[BlackElo "2856"]
[TimeControl "180+1"]
[EndTime "9:57:29 PST"]
[Termination "starworld123 won by resignation"]

1. d4 {[%clk 0:02:58.3]} 1... Nf6 {[%clk 0:03:00]} 2. Nf3 {[%clk 0:02:59.2]}
2... d5 {[%clk 0:03:00.1]} 3. e3 {[%clk 0:02:59.4]} 3... Bf5 {[%clk 0:02:56.9]}
4. c4 {[%clk 0:02:58]} 4... c6 {[%clk 0:02:53.1]} 5. Nc3 {[%clk 0:02:58.6]} 5...
e6 {[%clk 0:02:50.7]} 6. Nh4 {[%clk 0:02:58.9]} 6... Be4 {[%clk 0:02:51.3]} 7.
f3 {[%clk 0:02:59.1]} 7... Bg6 {[%clk 0:02:52]} 8. Bd2 {[%clk 0:02:59.8]} 8...
Nbd7 {[%clk 0:02:48.4]} 9. cxd5 {[%clk 0:03:00.3]} 9... exd5 {[%clk 0:02:43.7]}
10. Nxg6 {[%clk 0:03:00.5]} 10... hxg6 {[%clk 0:02:43.8]} 11. g3 {[%clk
0:02:58.3]} 11... Bd6 {[%clk 0:02:41.8]} 12. Kf2 {[%clk 0:02:58.2]} 12... g5
{[%clk 0:02:35.8]} 13. Bd3 {[%clk 0:02:55.4]} 13... Qc7 {[%clk 0:02:30.5]} 14.
Kg2 {[%clk 0:02:52.6]} 14... O-O-O {[%clk 0:02:15.6]} 15. Nb5 {[%clk 0:02:38.6]}
15... Qb8 {[%clk 0:02:09]} 16. Rc1 {[%clk 0:02:21]} 16... a6 {[%clk 0:01:55]}
17. Nxd6+ {[%clk 0:02:20.9]} 17... Qxd6 {[%clk 0:01:55.9]} 18. b4 {[%clk
0:02:21]} 18... Rde8 {[%clk 0:01:49.6]} 19. a4 {[%clk 0:02:12.1]} 19... g4
{[%clk 0:01:30.2]} 20. fxg4 {[%clk 0:02:12.3]} 20... Ne4 {[%clk 0:01:30.6]} 21.
Bxe4 {[%clk 0:02:02.6]} 21... Rxe4 {[%clk 0:01:31.5]} 22. b5 {[%clk 0:02:02.8]}
22... Nb6 {[%clk 0:01:22.6]} 23. bxc6 {[%clk 0:01:50.1]} 23... bxc6 {[%clk
0:01:22.7]} 24. Qf3 {[%clk 0:01:48.2]} 24... Qe6 {[%clk 0:01:16.8]} 25. h3
{[%clk 0:01:39.3]} 25... Nc4 {[%clk 0:01:14.1]} 26. Rxc4 {[%clk 0:01:26.9]}
26... dxc4 {[%clk 0:01:15]} 27. Rb1 {[%clk 0:01:25]} 27... c3 {[%clk 0:01:01.3]}
28. Qf1 {[%clk 0:01:13.3]} 28... c5 {[%clk 0:00:41.5]} 29. d5 {[%clk 0:01:00.5]}
29... Qh6 {[%clk 0:00:41.6]} 30. Qf5+ {[%clk 0:00:56.3]} 30... Kd8 {[%clk
0:00:12.2]} 31. Bxc3 {[%clk 0:00:39.3]} 31... Qxh3+ {[%clk 0:00:09.1]} 32. Kf3
{[%clk 0:00:39.6]} 32... Rxe3+ {[%clk 0:00:09.8]} 33. Kxe3 {[%clk 0:00:38.7]}
33... Qxg3+ {[%clk 0:00:10.7]} 34. Qf3 {[%clk 0:00:36.1]} 34... Re8+ {[%clk
0:00:10.7]} 0-1

[Event "Early-Titled-Tuesday-Blitz-January-16-2024"]
[Site "Chess.com"]
[Date "2024.01.16"]
[Round "10"]
[White "Vesper2018"]
[Black "bubeliang"]
[Result "0-1"]
[WhiteElo "2575"]
[BlackElo "2776"]
[TimeControl "180+1"]
[EndTime "9:57:30 PST"]
[Termination "bubeliang won on time"]

1. e4 {[%clk 0:03:00.9]} 1... b6 {[%clk 0:02:55]} 2. d4 {[%clk 0:02:57.7]} 2...
Bb7 {[%clk 0:02:55.2]} 3. Nc3 {[%clk 0:02:58.4]} 3... e6 {[%clk 0:02:55]} 4. a3
{[%clk 0:02:50.7]} 4... g6 {[%clk 0:02:52.3]} 5. f4 {[%clk 0:02:49.4]} 5... Bg7
{[%clk 0:02:52]} 6. Nf3 {[%clk 0:02:49.6]} 6... Ne7 {[%clk 0:02:51.6]} 7. Bd3
{[%clk 0:02:47.5]} 7... f5 {[%clk 0:02:51]} 8. O-O {[%clk 0:02:36.2]} 8... O-O
{[%clk 0:02:48.2]} 9. Qe2 {[%clk 0:02:35.9]} 9... c5 {[%clk 0:02:45.4]} 10. Be3
{[%clk 0:02:24.6]} 10... fxe4 {[%clk 0:02:44.3]} 11. Bxe4 {[%clk 0:02:15.6]}
11... d5 {[%clk 0:02:42.8]} 12. Ng5 {[%clk 0:02:15.8]} 12... Qd7 {[%clk
0:02:34.8]} 13. Bf3 {[%clk 0:02:11.1]} 13... cxd4 {[%clk 0:02:33]} 14. Bf2
{[%clk 0:01:51.1]} 14... dxc3 {[%clk 0:02:30.8]} 15. Nxe6 {[%clk 0:01:48.5]}
15... Re8 {[%clk 0:02:28.2]} 16. Nxg7 {[%clk 0:01:47.4]} 16... Kxg7 {[%clk
0:02:28.7]} 17. Bd4+ {[%clk 0:01:41.9]} 17... Kf8 {[%clk 0:02:16.3]} 18. Qe5
{[%clk 0:01:09.8]} 18... Ng8 {[%clk 0:02:13.5]} 19. Qh8 {[%clk 0:01:09.8]} 19...
cxb2 {[%clk 0:02:11.5]} 20. Bxb2 {[%clk 0:01:09]} 20... Nc6 {[%clk 0:02:11.8]}
21. f5 {[%clk 0:01:08.5]} 21... gxf5 {[%clk 0:02:04]} 22. Bg4 {[%clk 0:00:57.9]}
22... Ke7 {[%clk 0:01:25.2]} 23. Bxf5 {[%clk 0:00:51.5]} 23... Qc7 {[%clk
0:01:08.4]} 24. Bxh7 {[%clk 0:00:29.7]} 24... Kd7 {[%clk 0:00:51.4]} 25. Bxg8
{[%clk 0:00:27.2]} 25... Rxg8 {[%clk 0:00:48.5]} 26. Qh7+ {[%clk 0:00:27.5]}
26... Ne7 {[%clk 0:00:47.1]} 27. Rf7 {[%clk 0:00:26.2]} 27... Qc5+ {[%clk
0:00:46.7]} 28. Kh1 {[%clk 0:00:24.6]} 28... d4 {[%clk 0:00:43.4]} 29. Rg1
{[%clk 0:00:16.6]} 29... Raf8 {[%clk 0:00:37.7]} 30. Bxd4 {[%clk 0:00:13.8]}
30... Rxf7 {[%clk 0:00:32]} 31. Qxf7 {[%clk 0:00:03.9]} 31... Qxd4 {[%clk
0:00:30]} 32. c3 {[%clk 0:00:03.7]} 32... Bxg2+ {[%clk 0:00:27.9]} 33. Rxg2
{[%clk 0:00:03.6]} 33... Qd1+ {[%clk 0:00:28.8]} 0-1

[Event "Early-Titled-Tuesday-Blitz-January-16-2024"]
[Site "Chess.com"]
[Date "2024.01.16"]
[Round "10"]
[White "wonderfultime"]
[Black "Zohid6"]
[Result "1-0"]
[WhiteElo "3008"]
[BlackElo "2835"]
[TimeControl "180+1"]
[EndTime "9:57:36 PST"]
[Termination "wonderfultime won by resignation"]

1. d4 {[%clk 0:02:56.3]} 1... e6 {[%clk 0:02:58.6]} 2. Nf3 {[%clk 0:02:53.8]}
2... Nf6 {[%clk 0:02:58.4]} 3. Bf4 {[%clk 0:02:54.1]} 3... b6 {[%clk 0:02:58.2]}
4. e3 {[%clk 0:02:54.3]} 4... Bb7 {[%clk 0:02:58.4]} 5. c4 {[%clk 0:02:55]} 5...
Bb4+ {[%clk 0:02:57.7]} 6. Nfd2 {[%clk 0:02:54.9]} 6... O-O {[%clk 0:02:58]} 7.
a3 {[%clk 0:02:55]} 7... Bxd2+ {[%clk 0:02:58.1]} 8. Nxd2 {[%clk 0:02:53.1]}
8... d6 {[%clk 0:02:58.5]} 9. Be2 {[%clk 0:02:30.2]} 9... Nbd7 {[%clk
0:02:46.9]} 10. O-O {[%clk 0:02:30.2]} 10... e5 {[%clk 0:02:47.1]} 11. dxe5
{[%clk 0:02:27.4]} 11... dxe5 {[%clk 0:02:48]} 12. Bg3 {[%clk 0:02:27.7]} 12...
Qe7 {[%clk 0:02:44.8]} 13. b4 {[%clk 0:02:21.3]} 13... Rad8 {[%clk 0:02:43]} 14.
Qc2 {[%clk 0:02:20.3]} 14... Rfe8 {[%clk 0:02:39.9]} 15. Rfd1 {[%clk 0:02:18.3]}
15... Nf8 {[%clk 0:02:39.6]} 16. h3 {[%clk 0:02:13.4]} 16... Ng6 {[%clk
0:02:36.4]} 17. Rac1 {[%clk 0:02:01.3]} 17... h5 {[%clk 0:02:07]} 18. c5 {[%clk
0:01:59.7]} 18... h4 {[%clk 0:02:01.6]} 19. Bh2 {[%clk 0:01:59]} 19... Nh7
{[%clk 0:01:54.1]} 20. Nf3 {[%clk 0:01:26.1]} 20... Ng5 {[%clk 0:01:41.3]} 21.
Nxg5 {[%clk 0:01:25.2]} 21... Qxg5 {[%clk 0:01:42.2]} 22. Bf1 {[%clk 0:01:25.9]}
22... Bf3 {[%clk 0:01:16]} 23. Rxd8 {[%clk 0:01:05.7]} 23... Rxd8 {[%clk
0:01:16.7]} 24. a4 {[%clk 0:01:03]} 24... Ba8 {[%clk 0:00:52.5]} 25. c6 {[%clk
0:01:02]} 25... Ne7 {[%clk 0:00:38.6]} 26. b5 {[%clk 0:01:02.1]} 26... Rd6
{[%clk 0:00:38]} 27. Rd1 {[%clk 0:00:54.2]} 27... Qf6 {[%clk 0:00:30]} 28. Rxd6
{[%clk 0:00:54.1]} 28... Qxd6 {[%clk 0:00:30.9]} 29. f4 {[%clk 0:00:49.9]} 29...
Nd5 {[%clk 0:00:16.7]} 30. fxe5 {[%clk 0:00:48.8]} 30... Qa3 {[%clk 0:00:16.4]}
31. Qd2 {[%clk 0:00:42.3]} 31... Qc5 {[%clk 0:00:14.9]} 32. Qd4 {[%clk 0:00:40]}
32... Nxe3 {[%clk 0:00:08.1]} 33. Qxc5 {[%clk 0:00:40.4]} 33... bxc5 {[%clk
0:00:08.8]} 34. e6 {[%clk 0:00:41]} 34... Nd5 {[%clk 0:00:04.4]} 35. exf7+
{[%clk 0:00:41.4]} 35... Kxf7 {[%clk 0:00:04.4]} 36. Bc4 {[%clk 0:00:42.3]}
36... Ke6 {[%clk 0:00:04.3]} 37. Bxc7 {[%clk 0:00:42.6]} 1-0